[Event "2026 Biel Blitz Open"]
[Site "Biel, CH"]
[Date "2026.07.19"]
[Round "3"]
[White "Osmani, Xhevdet"]
[Black "Vedant Nayudu"]
[Result "0-1"]
[Board "47"]
[TimeControl "180+2"]
[WhiteFideId "22104569"]
[BlackFideId "33369780"]
[WhiteElo "1959"]
[BlackElo "1732"]
[WhiteClock "0:01:00"]
[BlackClock "0:01:01"]
[Variant "Standard"]
[EndDate "2026.07.19"]
[EndTime "12:37:19"]

1. d4 {[%clk 0:03:03]}  d5 {[%clk 0:03:03]} 2. Bf4 {[%clk 0:03:04]}  c5 {[%clk 0:03:04]} 3. c3 {[%clk 0:03:05]}  cxd4 {[%clk 0:03:04]}
4. cxd4 {[%clk 0:03:06]}  Nc6 {[%clk 0:03:04]} 5. e3 {[%clk 0:03:06]}  Qb6 {[%clk 0:03:04]} 6. b3 {[%clk 0:03:07]}  Nf6 {[%clk 0:03:05]}
7. Nd2 {[%clk 0:03:08]}  Bf5 {[%clk 0:03:02]} 8. Ngf3 {[%clk 0:03:07]}  e6 {[%clk 0:03:04]} 9. Be2 {[%clk 0:03:08]}  h6 {[%clk 0:03:04]}
10. O-O {[%clk 0:03:08]}  Be7 {[%clk 0:03:01]} 11. a3 {[%clk 0:03:09]}  O-O {[%clk 0:02:58]} 12. b4 {[%clk 0:03:09]}  a6 {[%clk 0:02:42]}
13. Nb3 {[%clk 0:03:11]}  Ne4 {[%clk 0:02:38]} 14. Bd3 {[%clk 0:03:02]}  a5 {[%clk 0:02:15]} 15. b5 {[%clk 0:02:54]}  Nc3 {[%clk 0:02:13]}
16. Qd2 {[%clk 0:02:52]}  Bxd3 {[%clk 0:01:47]} 17. Qxd3 {[%clk 0:02:53]}  Nxb5 {[%clk 0:01:44]} 18. Rfb1 {[%clk 0:02:53]}  Qa6 {[%clk 0:00:39]}
19. Nc5 {[%clk 0:02:49]}  Bxc5 {[%clk 0:00:36]} 20. Rxb5 {[%clk 0:02:49]}  Be7 {[%clk 0:00:33]} 21. Rab1 {[%clk 0:02:47]}  Na7 {[%clk 0:00:27]}
22. R5b3 {[%clk 0:02:46]}  Qxd3 {[%clk 0:00:26]} 23. Rxd3 {[%clk 0:02:46]}  b5 {[%clk 0:00:27]} 24. Rc3 {[%clk 0:02:46]}  Rac8 {[%clk 0:00:31]}
25. Rcb3 {[%clk 0:02:35]}  b4 {[%clk 0:00:31]} 26. axb4 {[%clk 0:02:35]}  Bxb4 {[%clk 0:00:26]} 27. Ne5 {[%clk 0:02:34]}  Rc3 {[%clk 0:00:26]}
28. Nd3 {[%clk 0:02:27]}  Rxb3 {[%clk 0:00:23]} 29. Rxb3 {[%clk 0:02:28]}  Nc6 {[%clk 0:00:20]} 30. Nb2 {[%clk 0:02:17]}  Ra8 {[%clk 0:00:18]}
31. Na4 {[%clk 0:02:19]}  f6 {[%clk 0:00:19]} 32. f3 {[%clk 0:02:18]}  e5 {[%clk 0:00:20]} 33. dxe5 {[%clk 0:02:17]}  fxe5 {[%clk 0:00:22]}
34. Bg3 {[%clk 0:02:18]}  Kf7 {[%clk 0:00:23]} 35. Bf2 {[%clk 0:02:17]}  Ke6 {[%clk 0:00:25]} 36. Kf1 {[%clk 0:02:18]}  Rb8 {[%clk 0:00:20]}
37. Ke2 {[%clk 0:02:18]}  Bd6 {[%clk 0:00:21]} 38. Rxb8 {[%clk 0:01:59]}  Bxb8 {[%clk 0:00:21]} 39. Be1 {[%clk 0:02:01]}  Bd6 {[%clk 0:00:20]}
40. Kd3 {[%clk 0:02:02]}  Bb4 {[%clk 0:00:21]} 41. Bg3 {[%clk 0:02:02]}  g5 {[%clk 0:00:18]} 42. Bf2 {[%clk 0:02:02]}  Kd6 {[%clk 0:00:18]}
43. g3 {[%clk 0:02:02]}  Ne7 {[%clk 0:00:15]} 44. h3 {[%clk 0:02:01]}  Kc6 {[%clk 0:00:16]} 45. e4 {[%clk 0:01:57]}  Kb5 {[%clk 0:00:14]}
46. Nb6 {[%clk 0:01:55]}  d4 {[%clk 0:00:12]} 47. Nd7 {[%clk 0:01:54]}  Bd6 {[%clk 0:00:12]} 48. Be1 {[%clk 0:01:55]}  Nc6 {[%clk 0:00:13]}
49. Nf6 {[%clk 0:01:50]}  Nb4+ {[%clk 0:00:12]} 50. Kd2 {[%clk 0:01:50]}  Kc4 {[%clk 0:00:11]} 51. Ne8 {[%clk 0:01:42]}  Bc5 {[%clk 0:00:10]}
52. Nc7 {[%clk 0:01:40]}  Kb3 {[%clk 0:00:11]} 53. Nb5 {[%clk 0:01:34]}  a4 {[%clk 0:00:12]} 54. h4 {[%clk 0:01:27]}  a3 {[%clk 0:00:13]}
55. Nxa3 {[%clk 0:01:26]}  Kxa3 {[%clk 0:00:14]} 56. hxg5 {[%clk 0:01:25]}  hxg5 {[%clk 0:00:15]} 57. Bf2 {[%clk 0:01:24]}  Nc6 {[%clk 0:00:14]}
58. Kd3 {[%clk 0:01:25]}  Kb3 {[%clk 0:00:15]} 59. Bg1 {[%clk 0:01:23]}  Nb4 {[%clk 0:00:16]} 60. Kd2 {[%clk 0:01:23]}  Kc4 {[%clk 0:00:12]}
61. Bh2 {[%clk 0:01:25]}  d3 {[%clk 0:00:14]} 62. f4 {[%clk 0:01:26]}  exf4 {[%clk 0:00:15]} 63. gxf4 {[%clk 0:01:28]}  gxf4 {[%clk 0:00:09]}
64. Bxf4 {[%clk 0:01:29]}  Bd4 {[%clk 0:00:06]} 65. e5 {[%clk 0:01:30]}  Bc3+ {[%clk 0:00:07]} 66. Ke3 {[%clk 0:01:26]}  Kd5 {[%clk 0:00:07]}
67. e6 {[%clk 0:01:27]}  Kxe6 {[%clk 0:00:02]} 68. Ke4 {[%clk 0:01:24]}  Be1 {[%clk 0:00:04]} 69. Kd4 {[%clk 0:01:25]}  Kf5 {[%clk 0:00:03]}
70. Bc1 {[%clk 0:01:25]}  Kg4 {[%clk 0:00:04]} 71. Ke3 {[%clk 0:01:25]}  Bc3 {[%clk 0:00:05]} 72. Ba3 {[%clk 0:01:21]}  d2 {[%clk 0:00:04]}
73. Ke2 {[%clk 0:01:22]}  Nc2 {[%clk 0:00:05]} 74. Bc5 {[%clk 0:01:15]}  Kf4 {[%clk 0:00:04]} 75. Bf8 {[%clk 0:01:16]}  Ke4 {[%clk 0:00:05]}
76. Bh6 {[%clk 0:01:17]}  Bb4 {[%clk 0:00:06]} 77. Bxd2 {[%clk 0:01:14]}  Nd4+ {[%clk 0:00:06]} 78. Kd1 {[%clk 0:01:18]}  Bc5 {[%clk 0:00:04]}
79. Bc3 {[%clk 0:01:17]}  Nb5 {[%clk 0:00:05]} 80. Bg7 {[%clk 0:01:18]}  Kd3 {[%clk 0:00:06]} 81. Ke1 {[%clk 0:01:18]}  Nd6 {[%clk 0:00:05]}
82. Kf1 {[%clk 0:01:18]}  Ne4 {[%clk 0:00:06]} 83. Kg2 {[%clk 0:01:18]}  Ke2 {[%clk 0:00:08]} 84. Be5 {[%clk 0:01:18]}  Ng5 {[%clk 0:00:06]}
85. Bf4 {[%clk 0:01:17]}  Ne6 {[%clk 0:00:07]} 86. Be5 {[%clk 0:01:18]}  Ke3 {[%clk 0:00:08]} 87. Bf6 {[%clk 0:01:18]}  Bd6 {[%clk 0:00:09]}
88. Bb2 {[%clk 0:01:19]}  Nf4+ {[%clk 0:00:09]} 89. Kf1 {[%clk 0:01:18]}  Kf3 {[%clk 0:01:09]} 90. Bc1 {[%clk 0:01:18]}  Nd3 {[%clk 0:01:06]}
91. Bd2 {[%clk 0:01:18]}  Bc5 {[%clk 0:01:02]} 92. Bc3 {[%clk 0:01:17]}  Bf2 {[%clk 0:01:02]} 93. Bd2 {[%clk 0:01:15]}  Ne5 {[%clk 0:00:57]}
94. Be1 {[%clk 0:01:14]}  Be3 {[%clk 0:00:58]} 95. Bc3 {[%clk 0:01:13]}  Ng4 {[%clk 0:00:59]} 96. Ba5 {[%clk 0:01:09]}  Bf2 {[%clk 0:01:00]}
97. Bd2 {[%clk 0:01:00]}  Nh2# {[%clk 0:01:01]} 0-1

[Event "2026 Biel Blitz Open"]
[Site "Biel, CH"]
[Date "2026.07.19"]
[Round "3"]
[White "Mousseau, Leo"]
[Black "Ragios, Konstantinos"]
[Result "0-1"]
[Board "48"]
[TimeControl "180+2"]
[WhiteFideId "34666931"]
[BlackFideId "4210484"]
[WhiteElo "1714"]
[BlackElo "1957"]
[WhiteClock "0:00:04"]
[BlackClock "0:00:47"]
[Variant "Standard"]
[EndDate "2026.07.19"]
[EndTime "12:35:07"]

1. e4 {[%clk 0:03:02]}  e5 {[%clk 0:03:03]} 2. Nc3 {[%clk 0:03:03]}  Nc6 {[%clk 0:03:04]} 3. Bc4 {[%clk 0:03:04]}  Bb4 {[%clk 0:03:01]}
4. Qg4 {[%clk 0:02:57]}  Bxc3 {[%clk 0:02:32]} 5. Qxg7 {[%clk 0:02:47]}  Qf6 {[%clk 0:02:32]} 6. Qxf6 {[%clk 0:02:41]}  Nxf6 {[%clk 0:02:26]}
7. bxc3 {[%clk 0:02:25]}  Nxe4 {[%clk 0:02:25]} 8. Nf3 {[%clk 0:02:20]}  d6 {[%clk 0:02:18]} 9. Bb2 {[%clk 0:02:12]}  h6 {[%clk 0:01:59]}
10. O-O {[%clk 0:02:00]}  Bg4 {[%clk 0:01:38]} 11. Nh4 {[%clk 0:01:19]}  Nxd2 {[%clk 0:01:37]} 12. Bd5 {[%clk 0:00:54]}  Nxf1 {[%clk 0:01:36]}
13. Rxf1 {[%clk 0:00:55]}  Be6 {[%clk 0:01:22]} 14. Bxc6+ {[%clk 0:00:48]}  bxc6 {[%clk 0:01:23]} 15. f4 {[%clk 0:00:47]}  e4 {[%clk 0:01:17]}
16. Re1 {[%clk 0:00:44]}  f5 {[%clk 0:01:07]} 17. g4 {[%clk 0:00:26]}  Rg8 {[%clk 0:01:04]} 18. h3 {[%clk 0:00:25]}  Kd7 {[%clk 0:01:00]}
19. Kh2 {[%clk 0:00:12]}  fxg4 {[%clk 0:00:59]} 20. f5 {[%clk 0:00:13]}  g3+ {[%clk 0:00:58]} 21. Kg2 {[%clk 0:00:13]}  Bd5 {[%clk 0:00:58]}
22. c4 {[%clk 0:00:13]}  Bxc4 {[%clk 0:00:57]} 23. Ng6 {[%clk 0:00:04]}  Bf7 {[%clk 0:00:50]} 24. Nf4 {[%clk 0:00:04]}  Bxa2 {[%clk 0:00:48]}
25. c4 {[%clk 0:00:03]}  Bxc4 {[%clk 0:00:48]} 26. Rc1 {[%clk 0:00:04]}  Bd5 {[%clk 0:00:48]} 27. Rd1 {[%clk 0:00:03]}  Rab8 {[%clk 0:00:47]}
28. Bd4 {[%clk 0:00:03]}  Rb3 {[%clk 0:00:47]} 29. Bg1 {[%clk 0:00:04]}  Rb2+ {[%clk 0:00:47]} 30. Kh1 {[%clk 0:00:04]}  e3+ {[%clk 0:00:47]} 0-1

[Event "2026 Biel Blitz Open"]
[Site "Biel, CH"]
[Date "2026.07.19"]
[Round "3"]
[White "Clausen, Martin"]
[Black "Tahari, Youcef Nazim"]
[Result "1-0"]
[Board "49"]
[TimeControl "180+2"]
[WhiteFideId "1314882"]
[BlackFideId "282537"]
[WhiteElo "1956"]
[BlackElo "1691"]
[WhiteClock "0:00:14"]
[BlackClock "0:00:17"]
[Variant "Standard"]
[EndDate "2026.07.19"]
[EndTime "12:29:09"]

1. e4 {[%clk 0:03:01]}  c5 {[%clk 0:03:03]} 2. a3 {[%clk 0:03:02]}  Nc6 {[%clk 0:02:52]} 3. b4 {[%clk 0:03:01]}  e6 {[%clk 0:02:50]}
4. b5 {[%clk 0:02:58]}  Nb8 {[%clk 0:02:47]} 5. Bb2 {[%clk 0:02:53]}  d5 {[%clk 0:02:38]} 6. e5 {[%clk 0:02:22]}  d4 {[%clk 0:02:34]}
7. g3 {[%clk 0:02:08]}  Qd5 {[%clk 0:02:25]} 8. Nf3 {[%clk 0:02:08]}  Nd7 {[%clk 0:02:15]} 9. Qe2 {[%clk 0:02:05]}  Nh6 {[%clk 0:01:39]}
10. Bg2 {[%clk 0:02:06]}  Ng4 {[%clk 0:01:40]} 11. O-O {[%clk 0:01:59]}  Ngxe5 {[%clk 0:01:31]} 12. Re1 {[%clk 0:01:50]}  Nxf3+ {[%clk 0:01:21]}
13. Bxf3 {[%clk 0:01:51]}  Qg5 {[%clk 0:01:10]} 14. d3 {[%clk 0:01:49]}  Bd6 {[%clk 0:01:08]} 15. Nd2 {[%clk 0:01:43]}  Qe7 {[%clk 0:01:02]}
16. Ne4 {[%clk 0:01:21]}  Bc7 {[%clk 0:01:04]} 17. c3 {[%clk 0:01:16]}  e5 {[%clk 0:00:59]} 18. cxd4 {[%clk 0:01:08]}  cxd4 {[%clk 0:01:00]}
19. a4 {[%clk 0:00:59]}  O-O {[%clk 0:01:00]} 20. Ba3 {[%clk 0:00:59]}  Qe6 {[%clk 0:00:49]} 21. Bxf8 {[%clk 0:00:30]}  Kxf8 {[%clk 0:00:48]}
22. Qa2 {[%clk 0:00:09]}  Qe7 {[%clk 0:00:40]} 23. Rec1 {[%clk 0:00:09]}  Ba5 {[%clk 0:00:39]} 24. Nd2 {[%clk 0:00:10]}  Bc3 {[%clk 0:00:39]}
25. Rab1 {[%clk 0:00:11]}  Nc5 {[%clk 0:00:37]} 26. Ne4 {[%clk 0:00:12]}  Nxd3 {[%clk 0:00:37]} 27. Nxc3 {[%clk 0:00:10]}  Nxc1 {[%clk 0:00:37]}
28. Rxc1 {[%clk 0:00:08]}  dxc3 {[%clk 0:00:38]} 29. Rxc3 {[%clk 0:00:09]}  Be6 {[%clk 0:00:38]} 30. Qc2 {[%clk 0:00:10]}  Rd8 {[%clk 0:00:33]}
31. Qxh7 {[%clk 0:00:10]}  f6 {[%clk 0:00:29]} 32. Kg2 {[%clk 0:00:12]}  Qd6 {[%clk 0:00:18]} 33. Qc2 {[%clk 0:00:12]}  Rd7 {[%clk 0:00:18]}
34. Rc8+ {[%clk 0:00:13]}  Kf7 {[%clk 0:00:18]} 35. Bh5+ {[%clk 0:00:14]}  Ke7 {[%clk 0:00:17]} 36. Re8# {[%clk 0:00:14]} 1-0

[Event "2026 Biel Blitz Open"]
[Site "Biel, CH"]
[Date "2026.07.19"]
[Round "3"]
[White "Chu, Wa Ching David"]
[Black "Jehnichen, Kai"]
[Result "0-1"]
[Board "50"]
[TimeControl "180+2"]
[WhiteFideId "6013180"]
[BlackFideId "24684333"]
[WhiteElo "1673"]
[BlackElo "1952"]
[WhiteClock "0:00:05"]
[BlackClock "0:00:58"]
[Variant "Standard"]
[EndDate "2026.07.19"]
[EndTime "12:34:29"]

1. d4 {[%clk 0:03:02]}  g6 {[%clk 0:03:02]} 2. c4 {[%clk 0:03:02]}  Bg7 {[%clk 0:03:03]} 3. Nc3 {[%clk 0:03:03]}  c5 {[%clk 0:03:04]}
4. e3 {[%clk 0:03:01]}  Nf6 {[%clk 0:03:04]} 5. Bd3 {[%clk 0:02:59]}  O-O {[%clk 0:03:04]} 6. Nf3 {[%clk 0:02:45]}  Na6 {[%clk 0:03:00]}
7. a3 {[%clk 0:02:44]}  d6 {[%clk 0:03:00]} 8. O-O {[%clk 0:02:43]}  Bg4 {[%clk 0:02:59]} 9. h3 {[%clk 0:02:43]}  Bxf3 {[%clk 0:02:59]}
10. Qxf3 {[%clk 0:02:41]}  Rb8 {[%clk 0:03:00]} 11. Rd1 {[%clk 0:02:21]}  Nd7 {[%clk 0:02:56]} 12. Bf1 {[%clk 0:02:05]}  Nc7 {[%clk 0:02:53]}
13. d5 {[%clk 0:02:04]}  a6 {[%clk 0:02:50]} 14. a4 {[%clk 0:01:34]}  Qe8 {[%clk 0:02:46]} 15. e4 {[%clk 0:01:27]}  Ne5 {[%clk 0:02:46]}
16. Qe2 {[%clk 0:01:25]}  b5 {[%clk 0:02:45]} 17. axb5 {[%clk 0:01:24]}  axb5 {[%clk 0:02:46]} 18. Ra7 {[%clk 0:01:20]}  b4 {[%clk 0:02:38]}
19. Rxc7 {[%clk 0:01:04]}  bxc3 {[%clk 0:02:39]} 20. bxc3 {[%clk 0:01:06]}  Qd8 {[%clk 0:02:40]} 21. Ra7 {[%clk 0:01:06]}  Qb6 {[%clk 0:02:38]}
22. Ra1 {[%clk 0:01:01]}  Qb3 {[%clk 0:02:38]} 23. Bd2 {[%clk 0:00:55]}  e6 {[%clk 0:02:33]} 24. Rdb1 {[%clk 0:00:53]}  Qxb1 {[%clk 0:02:33]}
25. Rxb1 {[%clk 0:00:54]}  Rxb1 {[%clk 0:02:33]} 26. f4 {[%clk 0:00:49]}  Nd7 {[%clk 0:02:32]} 27. Qe3 {[%clk 0:00:47]}  Ra8 {[%clk 0:02:28]}
28. Kh2 {[%clk 0:00:48]}  Rxf1 {[%clk 0:02:28]} 29. dxe6 {[%clk 0:00:43]}  fxe6 {[%clk 0:02:27]} 30. Qd3 {[%clk 0:00:45]}  Raa1 {[%clk 0:02:21]}
31. Qxd6 {[%clk 0:00:42]}  Rh1+ {[%clk 0:02:21]} 32. Kg3 {[%clk 0:00:44]}  Nf8 {[%clk 0:02:23]} 33. Qxc5 {[%clk 0:00:41]}  Rhd1 {[%clk 0:02:17]}
34. Be3 {[%clk 0:00:39]}  Rd3 {[%clk 0:02:15]} 35. Kg4 {[%clk 0:00:39]}  Re1 {[%clk 0:02:10]} 36. Bd4 {[%clk 0:00:24]}  Rxe4 {[%clk 0:01:51]}
37. Bxg7 {[%clk 0:00:22]}  Kxg7 {[%clk 0:01:46]} 38. Qe7+ {[%clk 0:00:21]}  Kg8 {[%clk 0:01:45]} 39. Kg5 {[%clk 0:00:19]}  Rd7 {[%clk 0:01:36]}
40. Qc5 {[%clk 0:00:09]}  Kg7 {[%clk 0:01:33]} 41. Qc6 {[%clk 0:00:12]}  h6+ {[%clk 0:01:34]} 42. Kg4 {[%clk 0:00:12]}  Re2 {[%clk 0:01:20]}
43. Kf3 {[%clk 0:00:11]}  Red2 {[%clk 0:01:15]} 44. Qc5 {[%clk 0:00:06]}  h5 {[%clk 0:01:09]} 45. Qe5+ {[%clk 0:00:07]}  Kf7 {[%clk 0:01:06]}
46. Qb5 {[%clk 0:00:07]}  Nh7 {[%clk 0:00:57]} 47. c5 {[%clk 0:00:04]}  R7d3+ {[%clk 0:00:56]} 48. Ke4 {[%clk 0:00:05]}  Nf6+ {[%clk 0:00:57]}
49. Ke5 {[%clk 0:00:05]}  Rd5# {[%clk 0:00:58]} 0-1

[Event "2026 Biel Blitz Open"]
[Site "Biel, CH"]
[Date "2026.07.19"]
[Round "3"]
[White "Havolli, Daut"]
[Black "Bachmann, Daniel"]
[Result "1-0"]
[Board "51"]
[TimeControl "180+2"]
[WhiteFideId "1315200"]
[BlackFideId "1357492"]
[WhiteElo "1950"]
[BlackElo "1689"]
[WhiteClock "0:00:17"]
[BlackClock "0:00:13"]
[Variant "Standard"]
[EndDate "2026.07.19"]
[EndTime "12:32:09"]

1. d4 {[%clk 0:03:03]}  Nf6 {[%clk 0:03:04]} 2. Bf4 {[%clk 0:03:04]}  d5 {[%clk 0:03:04]} 3. Nc3 {[%clk 0:03:05]}  c5 {[%clk 0:03:04]}
4. e3 {[%clk 0:03:03]}  cxd4 {[%clk 0:03:05]} 5. exd4 {[%clk 0:03:01]}  a6 {[%clk 0:03:07]} 6. Qd2 {[%clk 0:03:01]}  e6 {[%clk 0:03:04]}
7. f3 {[%clk 0:03:01]}  Nc6 {[%clk 0:03:03]} 8. O-O-O {[%clk 0:03:00]}  Bd6 {[%clk 0:03:03]} 9. g4 {[%clk 0:02:59]}  Bxf4 {[%clk 0:02:59]}
10. Qxf4 {[%clk 0:03:00]}  Ke7 {[%clk 0:02:56]} 11. h4 {[%clk 0:02:49]}  Qd6 {[%clk 0:02:57]} 12. Qg5 {[%clk 0:02:39]}  Bd7 {[%clk 0:02:49]}
13. Qxg7 {[%clk 0:02:16]}  Qf4+ {[%clk 0:02:39]} 14. Kb1 {[%clk 0:02:17]}  Rag8 {[%clk 0:02:39]} 15. Nh3 {[%clk 0:01:45]}  Qe3 {[%clk 0:02:23]}
16. Qxh8 {[%clk 0:01:13]}  Rxh8 {[%clk 0:02:23]} 17. Bd3 {[%clk 0:01:03]}  Qxd4 {[%clk 0:02:03]} 18. Rhe1 {[%clk 0:00:47]}  Qb6 {[%clk 0:01:56]}
19. g5 {[%clk 0:00:43]}  d4 {[%clk 0:01:52]} 20. gxf6+ {[%clk 0:00:42]}  Kxf6 {[%clk 0:01:52]} 21. Ne4+ {[%clk 0:00:40]}  Ke7 {[%clk 0:01:51]}
22. Nhg5 {[%clk 0:00:28]}  e5 {[%clk 0:01:49]} 23. Nd2 {[%clk 0:00:26]}  f6 {[%clk 0:01:49]} 24. Nxh7 {[%clk 0:00:18]}  Nb4 {[%clk 0:01:47]}
25. Bg6 {[%clk 0:00:17]}  Rg8 {[%clk 0:01:45]} 26. h5 {[%clk 0:00:18]}  Qc6 {[%clk 0:01:39]} 27. Rc1 {[%clk 0:00:14]}  Be8 {[%clk 0:01:35]}
28. Rg1 {[%clk 0:00:12]}  Bxg6 {[%clk 0:01:34]} 29. hxg6 {[%clk 0:00:10]}  d3 {[%clk 0:01:31]} 30. c3 {[%clk 0:00:10]}  Nc2 {[%clk 0:01:30]}
31. Ne4 {[%clk 0:00:11]}  Qb6 {[%clk 0:01:24]} 32. Nhxf6 {[%clk 0:00:09]}  Rc8 {[%clk 0:01:14]} 33. Nd5+ {[%clk 0:00:11]}  Kf8 {[%clk 0:01:11]}
34. Nxb6 {[%clk 0:00:08]}  Rc6 {[%clk 0:01:10]} 35. Nd5 {[%clk 0:00:13]}  Kg7 {[%clk 0:01:03]} 36. Nb4 {[%clk 0:00:14]}  Rb6 {[%clk 0:01:05]}
37. Nxc2 {[%clk 0:00:15]}  dxc2+ {[%clk 0:01:06]} 38. Rxc2 {[%clk 0:00:16]}  Rc6 {[%clk 0:01:04]} 39. Rcg2 {[%clk 0:00:17]}  b5 {[%clk 0:01:04]}
40. Rh1 {[%clk 0:00:18]}  b4 {[%clk 0:01:02]} 41. cxb4 {[%clk 0:00:19]}  Kg8 {[%clk 0:00:57]} 42. Rh7 {[%clk 0:00:20]}  a5 {[%clk 0:00:48]}
43. bxa5 {[%clk 0:00:20]}  Ra6 {[%clk 0:00:23]} 44. b4 {[%clk 0:00:21]}  Rc6 {[%clk 0:00:22]} 45. a4 {[%clk 0:00:20]}  Rc4 {[%clk 0:00:15]}
46. Nf6+ {[%clk 0:00:17]}  Kf8 {[%clk 0:00:13]} 47. Rf7# {[%clk 0:00:17]} 1-0

[Event "2026 Biel Blitz Open"]
[Site "Biel, CH"]
[Date "2026.07.19"]
[Round "3"]
[White "Koehler, Noe"]
[Black "Jud, Marc"]
[Result "0-1"]
[Board "52"]
[TimeControl "180+2"]
[WhiteFideId "1362488"]
[BlackFideId "1309099"]
[WhiteElo "1639"]
[BlackElo "1946"]
[WhiteClock "0:00:26"]
[BlackClock "0:00:07"]
[Variant "Standard"]
[EndDate "2026.07.19"]
[EndTime "12:28:48"]

1. e4 {[%clk 0:03:04]}  c5 {[%clk 0:03:04]} 2. Nf3 {[%clk 0:03:05]}  d6 {[%clk 0:03:05]} 3. d4 {[%clk 0:03:06]}  cxd4 {[%clk 0:03:06]}
4. Nxd4 {[%clk 0:03:08]}  Nf6 {[%clk 0:03:05]} 5. Nc3 {[%clk 0:03:09]}  a6 {[%clk 0:03:09]} 6. f3 {[%clk 0:03:10]}  e5 {[%clk 0:03:10]}
7. Nb3 {[%clk 0:03:11]}  h5 {[%clk 0:03:11]} 8. Be3 {[%clk 0:03:08]}  Be6 {[%clk 0:03:11]} 9. Qd2 {[%clk 0:03:09]}  d5 {[%clk 0:03:03]}
10. O-O-O {[%clk 0:02:35]}  d4 {[%clk 0:02:59]} 11. Bg5 {[%clk 0:02:36]}  Be7 {[%clk 0:03:00]} 12. Ne2 {[%clk 0:02:07]}  Nc6 {[%clk 0:02:51]}
13. Kb1 {[%clk 0:02:07]}  Qc7 {[%clk 0:02:45]} 14. Ng3 {[%clk 0:01:57]}  g6 {[%clk 0:02:40]} 15. Bd3 {[%clk 0:01:51]}  a5 {[%clk 0:02:11]}
16. Qf2 {[%clk 0:01:14]}  O-O {[%clk 0:01:46]} 17. f4 {[%clk 0:00:55]}  Ng4 {[%clk 0:01:42]} 18. Qf3 {[%clk 0:00:44]}  f6 {[%clk 0:01:19]}
19. Bh4 {[%clk 0:00:35]}  g5 {[%clk 0:01:08]} 20. f5 {[%clk 0:00:15]}  Bxb3 {[%clk 0:01:04]} 21. axb3 {[%clk 0:00:16]}  gxh4 {[%clk 0:01:05]}
22. Nxh5 {[%clk 0:00:16]}  Ne3 {[%clk 0:00:56]} 23. Rde1 {[%clk 0:00:08]}  Kf7 {[%clk 0:00:53]} 24. Rxe3 {[%clk 0:00:03]}  dxe3 {[%clk 0:00:52]}
25. Bc4+ {[%clk 0:00:03]}  Ke8 {[%clk 0:00:55]} 26. Qxe3 {[%clk 0:00:06]}  Rh8 {[%clk 0:00:34]} 27. Ng7+ {[%clk 0:00:03]}  Kd7 {[%clk 0:00:30]}
28. Rd1+ {[%clk 0:00:08]}  Kc8 {[%clk 0:00:31]} 29. Be6+ {[%clk 0:00:09]}  Kb8 {[%clk 0:00:33]} 30. Bc4 {[%clk 0:00:06]}  Nd4 {[%clk 0:00:26]}
31. Ne6 {[%clk 0:00:07]}  Nxe6 {[%clk 0:00:25]} 32. fxe6 {[%clk 0:00:08]}  Bc5 {[%clk 0:00:22]} 33. Qe2 {[%clk 0:00:07]}  a4 {[%clk 0:00:21]}
34. Rd7 {[%clk 0:00:07]}  Qb6 {[%clk 0:00:19]} 35. bxa4 {[%clk 0:00:03]}  Bd4 {[%clk 0:00:19]} 36. c3 {[%clk 0:00:06]}  Bxc3 {[%clk 0:00:20]}
37. Qc2 {[%clk 0:00:06]}  Bd4 {[%clk 0:00:21]} 38. a5 {[%clk 0:00:04]}  Rxa5 {[%clk 0:00:22]} 39. Kc1 {[%clk 0:00:03]}  Rc5 {[%clk 0:00:23]}
40. Kd1 {[%clk 0:00:04]}  Qb4 {[%clk 0:00:23]} 41. b3 {[%clk 0:00:04]}  Qa3 {[%clk 0:00:23]} 42. Qb1 {[%clk 0:00:05]}  Rg8 {[%clk 0:00:22]}
43. e7 {[%clk 0:00:05]}  Rcc8 {[%clk 0:00:22]} 44. Rd8 {[%clk 0:00:05]}  Rcxd8 {[%clk 0:00:23]} 45. exd8=Q+ {[%clk 0:00:06]}  Rxd8 {[%clk 0:00:24]}
46. g3 {[%clk 0:00:06]}  hxg3 {[%clk 0:00:25]} 47. hxg3 {[%clk 0:00:07]}  Bf2+ {[%clk 0:00:26]} 0-1

[Event "2026 Biel Blitz Open"]
[Site "Biel, CH"]
[Date "2026.07.19"]
[Round "3"]
[White "Munoz de Leon, David"]
[Black "Waelti, Thomas"]
[Result "0-1"]
[Board "53"]
[TimeControl "180+2"]
[WhiteFideId "1340271"]
[BlackFideId "1303996"]
[WhiteElo "1609"]
[BlackElo "1940"]
[WhiteClock "0:00:06"]
[BlackClock "0:00:37"]
[Variant "Standard"]
[EndDate "2026.07.19"]
[EndTime "12:37:07"]

1. d4 {[%clk 0:03:03]}  d5 {[%clk 0:03:03]} 2. c4 {[%clk 0:03:04]}  e6 {[%clk 0:03:05]} 3. Nc3 {[%clk 0:03:05]}  Nf6 {[%clk 0:03:06]}
4. a3 {[%clk 0:03:06]}  Be7 {[%clk 0:03:03]} 5. Bf4 {[%clk 0:03:07]}  O-O {[%clk 0:03:01]} 6. Nf3 {[%clk 0:03:09]}  c6 {[%clk 0:02:57]}
7. e3 {[%clk 0:03:09]}  Nbd7 {[%clk 0:02:45]} 8. cxd5 {[%clk 0:03:07]}  exd5 {[%clk 0:02:42]} 9. Bd3 {[%clk 0:03:07]}  Re8 {[%clk 0:02:41]}
10. O-O {[%clk 0:03:04]}  Nf8 {[%clk 0:02:42]} 11. Qc2 {[%clk 0:02:58]}  g6 {[%clk 0:02:42]} 12. Be5 {[%clk 0:02:55]}  Ne6 {[%clk 0:02:27]}
13. Rad1 {[%clk 0:02:46]}  Ng7 {[%clk 0:02:27]} 14. Rfe1 {[%clk 0:02:44]}  Bf5 {[%clk 0:02:25]} 15. e4 {[%clk 0:02:40]}  dxe4 {[%clk 0:02:21]}
16. Bxe4 {[%clk 0:02:40]}  Nxe4 {[%clk 0:02:13]} 17. Nxe4 {[%clk 0:02:39]}  f6 {[%clk 0:01:48]} 18. Bf4 {[%clk 0:02:16]}  Kh8 {[%clk 0:01:35]}
19. Qc4 {[%clk 0:02:02]}  Nh5 {[%clk 0:01:28]} 20. Bh6 {[%clk 0:01:54]}  Qd5 {[%clk 0:01:16]} 21. Qxd5 {[%clk 0:01:39]}  cxd5 {[%clk 0:01:17]}
22. Ng3 {[%clk 0:01:36]}  Nxg3 {[%clk 0:01:17]} 23. fxg3 {[%clk 0:01:36]}  Bd6 {[%clk 0:01:06]} 24. Nh4 {[%clk 0:01:30]}  Be4 {[%clk 0:01:00]}
25. b4 {[%clk 0:01:21]}  g5 {[%clk 0:00:57]} 26. g4 {[%clk 0:01:15]}  gxh4 {[%clk 0:00:55]} 27. Rf1 {[%clk 0:01:06]}  Be7 {[%clk 0:00:54]}
28. Rc1 {[%clk 0:01:05]}  Rac8 {[%clk 0:00:54]} 29. h3 {[%clk 0:00:42]}  Kg8 {[%clk 0:00:55]} 30. Kh2 {[%clk 0:00:40]}  Kf7 {[%clk 0:00:56]}
31. g5 {[%clk 0:00:38]}  f5 {[%clk 0:00:55]} 32. g4 {[%clk 0:00:30]}  hxg3+ {[%clk 0:00:56]} 33. Kxg3 {[%clk 0:00:31]}  Bd6+ {[%clk 0:00:55]}
34. Kh4 {[%clk 0:00:29]}  Kg6 {[%clk 0:00:55]} 35. Rce1 {[%clk 0:00:09]}  Rc3 {[%clk 0:00:50]} 36. a4 {[%clk 0:00:05]}  Bg2 {[%clk 0:00:40]}
37. Rxe8 {[%clk 0:00:06]}  Rxh3# {[%clk 0:00:37]} 0-1